Workbook

Sheet Лист1
A1: Школа | C1: МБОУ Малозападенская СОШ | F1: Утвердил: | G1: должность | H1: Директор
A2: Типовое примерное меню приготавливаемых блюд | G2: фамилия | H2: Форопонова О.Ю.
A3: Возрастная категория | E3: 7-11 лет | G3: дата | H3: 12 | I3: 1 | J3: 2026
H4: день | I4: месяц | J4: год
A5: Неделя | B5: День недели | C5: Прием пищи | D5: Раздел меню | E5: Блюда | F5: Вес блюда, г | G5: Белки | H5: Жиры | I5: Углеводы | J5: Калорийность | K5: № рецептуры | L5: Цена
A6: 1 | B6: 1 | C6: Завтрак | D6: гор.блюдо | E6: =[1]!$D$4 -> Каша "Дружба" молочная | F6: 150 | G6: 15 | H6: 15 | I6: 42 | J6: 362 | K6: Таб.2 | L6: 28
D8: гор.напиток | E8: =[1]!D5 -> Чай с сахаром | F8: 200 | G8: 0 | H8: 0 | I8: 10 | J8: 41 | K8: 458 | L8: 10
D9: хлеб | E9: =[1]!D6 -> Хлеб пшеничный 2 сорт обогощенный | F9: 20 | G9: 2 | H9: 0 | I9: 10 | J9: 47 | K9: 13002 | L9: 6
D10: фрукты | E10: =[1]!D7 -> Фрукты свежие (Яблоко) | F10: 100 | G10: 0 | H10: 0 | I10: 10 | J10: 47 | K10: 79 | L10: 15
E11: =[1]!D8 -> Оладьи с повидлом | F11: 75 | G11: 4 | H11: 5 | I11: 17 | J11: 114 | K11: 444 | L11: 20
D13: итого | F13: =SUM(F6:F12) -> 545 | G13: =SUM(G6:G12) -> 21 | H13: 20 | I13: 89 | J13: 611 | L13: =SUM(L6:L12) -> 79
A14: =A6 -> 1 | B14: =B6 -> 1 | C14: Обед | D14: закуска
D15: 1 блюдо
D16: 2 блюдо
D17: гарнир
D18: напиток
D19: хлеб бел.
D20: хлеб черн.
D23: итого | F23: =SUM(F14:F22) -> 0 | G23: =SUM(G14:G22) -> 0 | H23: 0 | I23: 0 | J23: 0 | L23: =SUM(L14:L22) -> 0
A24: =A6 -> 1 | B24: =B6 -> 1 | C24: Итого за день: | F24: =F13+F23 -> 545 | G24: =G13+G23 -> 21 | H24: 20 | I24: 89 | J24: 611 | L24: =L13+L23 -> 79
A25: 1 | B25: 2 | C25: Завтрак | D25: гор.блюдо | E25: ='[2]1'!$D$4 -> Плов из птицы (1 вариант) | F25: 200 | G25: 18 | H25: 26 | I25: 49 | J25: 435 | K25: 502 | L25: 47
D27: гор.напиток | E27: ='[2]1'!D5 -> Чай с сахаром и лимоном | F27: 200 | G27: 0 | H27: 0 | I27: 15 | J27: 61 | K27: 459 | L27: 12
D28: хлеб | E28: ='[2]1'!D6 -> Хлеб пшеничный 2 сорт обогащенный | F28: 50 | G28: 4 | H28: 0 | I28: 25 | J28: 118 | K28: 13002 | L28: 6
D29: фрукты
D30: закуска | E30: ='[2]1'!$D$7 -> Овощи по сезону | F30: 60 | G30: 1 | H30: 0 | I30: 2 | J30: 14 | K30: 145 | L30: 14
D32: итого | F32: =SUM(F25:F31) -> 510 | G32: =SUM(G25:G31) -> 23 | H32: =SUM(H25:H31) -> 26 | I32: =SUM(I25:I31) -> 91 | J32: =SUM(J25:J31) -> 628 | L32: 79
A33: =A25 -> 1 | B33: =B25 -> 2 | C33: Обед | D33: закуска
D34: 1 блюдо
D35: 2 блюдо
D36: гарнир
D37: напиток
D38: хлеб бел.
D39: хлеб черн.
D42: итого | F42: =SUM(F33:F41) -> 0 | G42: =SUM(G33:G41) -> 0 | H42: =SUM(H33:H41) -> 0 | I42: =SUM(I33:I41) -> 0 | J42: =SUM(J33:J41) -> 0 | L42: 0
A43: =A25 -> 1 | B43: =B25 -> 2 | C43: Итого за день: | F43: =F32+F42 -> 510 | G43: =G32+G42 -> 23 | H43: =H32+H42 -> 26 | I43: =I32+I42 -> 91 | J43: =J32+J42 -> 628 | L43: 79
A44: 1 | B44: 3 | C44: Завтрак | D44: гор.блюдо | E44: ='[3]1'!$D$4 -> Пюре картофельное 150 гр. | F44: 150 | G44: 3 | H44: 5 | I44: 22 | J44: 150 | K44: 472 | L44: 29
D46: гор.напиток | E46: ='[3]1'!D5 -> Чай с молоком 200 гр. | F46: 200 | G46: 2 | H46: 1 | I46: 12 | J46: 64 | K46: 460 | L46: 15
D47: хлеб | E47: ='[3]1'!D6 -> Хлеб пшеничный 2 сорт обогащенный 40 гр. | F47: 40 | G47: 3 | H47: 0 | I47: 20 | J47: 94 | K47: 13002 | L47: 6
D48: фрукты
D49: овощи | E49: ='[3]1'!D7 -> Свекла отварная 60 гр. | F49: 60 | G49: 1 | H49: 0 | I49: 5 | J49: 25 | K49: 26 | L49: 10
E50: ='[3]1'!D8 -> Сосиски отварные 100 гр. | F50: 100 | G50: 11 | H50: 13 | I50: 24 | J50: 300 | K50: 74 | L50: 19
D51: итого | F51: =SUM(F44:F50) -> 550 | G51: =SUM(G44:G50) -> 20 | H51: =SUM(H44:H50) -> 19 | I51: =SUM(I44:I50) -> 83 | J51: =SUM(J44:J50) -> 633 | L51: 79
A52: =A44 -> 1 | B52: =B44 -> 3 | C52: Обед | D52: закуска
D53: 1 блюдо
D54: 2 блюдо
D55: гарнир
D56: напиток
D57: хлеб бел.
D58: хлеб черн.
D61: итого | F61: =SUM(F52:F60) -> 0 | G61: =SUM(G52:G60) -> 0 | H61: =SUM(H52:H60) -> 0 | I61: =SUM(I52:I60) -> 0 | J61: =SUM(J52:J60) -> 0 | L61: 0
A62: =A44 -> 1 | B62: =B44 -> 3 | C62: Итого за день: | F62: =F51+F61 -> 550 | G62: =G51+G61 -> 20 | H62: =H51+H61 -> 19 | I62: =I51+I61 -> 83 | J62: =J51+J61 -> 633 | L62: 79
A63: 1 | B63: 4 | C63: Завтрак | D63: гор.блюдо | E63: ='[4]1'!$D$4 -> Каша гречневая жидкая молочная с маслом сливочным | F63: 200 | G63: 11 | H63: 11 | I63: 38 | J63: 223 | K63: 184 | L63: 33
D65: гор.напиток | E65: ='[4]1'!$D$5 -> Кофейный напиток б/м | F65: 200 | G65: 1 | H65: 0 | I65: 18 | J65: 75 | K65: 432 | L65: 17
D66: хлеб
D67: фрукты | E67: ='[4]1'!D7 -> Фрукты свежие (Яблоко) | F67: 100 | G67: 0 | H67: 0 | I67: 10 | J67: 47 | K67: 79 | L67: 13
D68: сладкое | E68: ='[4]1'!D8 -> Печенье | F68: 50 | G68: 5 | H68: 5 | I68: 27 | J68: 198 | K68: ПТ | L68: 16
D70: итого | F70: =SUM(F63:F69) -> 550 | G70: =SUM(G63:G69) -> 17 | H70: =SUM(H63:H69) -> 16 | I70: =SUM(I63:I69) -> 93 | J70: =SUM(J63:J69) -> 543 | L70: 79
A71: =A63 -> 1 | B71: =B63 -> 4 | C71: Обед | D71: закуска
D72: 1 блюдо
D73: 2 блюдо
D74: гарнир
D75: напиток
D76: хлеб бел.
D77: хлеб черн.
D80: итого | F80: =SUM(F71:F79) -> 0 | G80: =SUM(G71:G79) -> 0 | H80: =SUM(H71:H79) -> 0 | I80: =SUM(I71:I79) -> 0 | J80: =SUM(J71:J79) -> 0 | L80: 0
A81: =A63 -> 1 | B81: =B63 -> 4 | C81: Итого за день: | F81: =F70+F80 -> 550 | G81: =G70+G80 -> 17 | H81: =H70+H80 -> 16 | I81: =I70+I80 -> 93 | J81: =J70+J80 -> 543 | L81: 79
A82: 1 | B82: 5 | C82: Завтрак | D82: гор.блюдо | E82: ='[5]1'!$D$4 -> Запеканка из творога 200гр | F82: 220 | G82: 27 | H82: 18 | I82: 24 | J82: 371 | K82: 475 | L82: 32
D84: гор.напиток | E84: ='[5]1'!D5 -> Чай с лимоном | F84: 200 | G84: 0 | H84: 0 | I84: 15 | J84: 61 | K84: 459 | L84: 15
D85: хлеб | E85: ='[5]1'!D6 -> Хлеб пшеничный 2 сорт обогащенный | F85: 40 | G85: 3 | H85: 0 | I85: 20 | J85: 94 | K85: 13002 | L85: 6
D86: фрукты
E87: ='[5]1'!D7 -> сметана 20гр | F87: 20 | G87: 1 | H87: 4 | I87: 1 | J87: 31 | K87: 26 | L87: 10
E88: ='[5]1'!D8 -> Сыр сычужный тердый (порциями) 20гр | F88: 20 | G88: 5 | H88: 5 | I88: 0 | J88: 69 | K88: 74 | L88: 16
D89: итого | F89: =SUM(F82:F88) -> 500 | G89: =SUM(G82:G88) -> 36 | H89: =SUM(H82:H88) -> 27 | I89: =SUM(I82:I88) -> 60 | J89: =SUM(J82:J88) -> 626 | L89: 79
A90: =A82 -> 1 | B90: =B82 -> 5 | C90: Обед | D90: закуска
D91: 1 блюдо
D92: 2 блюдо
D93: гарнир
D94: напиток
D95: хлеб бел.
D96: хлеб черн.
D99: итого | F99: =SUM(F90:F98) -> 0 | G99: =SUM(G90:G98) -> 0 | H99: =SUM(H90:H98) -> 0 | I99: =SUM(I90:I98) -> 0 | J99: =SUM(J90:J98) -> 0 | L99: 0
A100: =A82 -> 1 | B100: =B82 -> 5 | C100: Итого за день: | F100: =F89+F99 -> 500 | G100: =G89+G99 -> 36 | H100: =H89+H99 -> 27 | I100: =I89+I99 -> 60 | J100: =J89+J99 -> 626 | L100: 79
A101: 2 | B101: 1 | C101: Завтрак | D101: гор.блюдо | E101: ='[6]1'!$D$4 -> Каша манная молочная | F101: 200 | G101: 8 | H101: 11 | I101: 32 | J101: 225 | K101: 226 | L101: 29.7
D103: гор.напиток | E103: ='[6]1'!$D$5 -> Чай с сахаром | F103: 200 | G103: 0 | H103: 0 | I103: 10 | J103: 41 | K103: 458 | L103: 10
D104: хлеб | E104: ='[6]1'!$D$6 -> Хлеб пшеничный 2 сорт обогащенный | F104: 50 | G104: 4 | H104: 0 | I104: 25 | J104: 118 | K104: 13002 | L104: 8
D105: фрукты | E105: Фрукты свежие (Яблоко) | F105: 100 | G105: 0 | H105: 0 | I105: 10 | J105: 47 | K105: 79 | L105: 13
E106: Оладьи с повидлом | F106: 75 | G106: 4 | H106: 5 | I106: 17 | J106: 114 | K106: 444 | L106: 18.3
D108: итого | F108: =SUM(F101:F107) -> 625 | G108: =SUM(G101:G107) -> 16 | H108: 16 | I108: 94 | J108: 545 | L108: =SUM(L101:L107) -> 79
A109: =A101 -> 2 | B109: =B101 -> 1 | C109: Обед | D109: закуска
D110: 1 блюдо
D111: 2 блюдо
D112: гарнир
D113: напиток
D114: хлеб бел.
D115: хлеб черн.
D118: итого | F118: =SUM(F109:F117) -> 0 | G118: =SUM(G109:G117) -> 0 | H118: 0 | I118: 0 | J118: 0 | L118: =SUM(L109:L117) -> 0
A119: =A101 -> 2 | B119: =B101 -> 1 | C119: Итого за день: | F119: =F108+F118 -> 625 | G119: =G108+G118 -> 16 | H119: =H108+H118 -> 16 | I119: =I108+I118 -> 94 | J119: =J108+J118 -> 545 | L119: 79
A120: 2 | B120: 2 | C120: Завтрак | D120: гор.блюдо | E120: ='[7]1'!$D$4 -> Омлет натуральный | F120: 200 | G120: 10 | H120: 20 | I120: 4 | J120: 225 | K120: 307 | L120: 25
D122: гор.напиток | E122: ='[7]1'!$D$5 -> Чай с молоком | F122: 200 | G122: 2 | H122: 1 | I122: 12 | J122: 64 | K122: 460 | L122: 15
D123: хлеб | E123: ='[7]1'!$D$6 -> Хлеб пшеничный 2 сорт обогащенный | F123: 40 | G123: 3 | H123: 0 | I123: 20 | J123: 94 | K123: 13002 | L123: 8
D124: фрукты
D125: закуска | E125: ='[7]1'!$D$7 -> Икра кабачковая | F125: 60 | G125: 1 | H125: 3 | I125: 4 | J125: 47 | K125: 148 | L125: 21
D127: итого | F127: =SUM(F120:F126) -> 500 | G127: =SUM(G120:G126) -> 16 | H127: 24 | I127: 40 | J127: 430 | L127: =SUM(L120:L126) -> 69
A128: =A120 -> 2 | B128: =B120 -> 2 | C128: Обед | D128: закуска
D129: 1 блюдо
D130: 2 блюдо
D131: гарнир
D132: напиток
D133: хлеб бел.
D134: хлеб черн.
D137: итого | F137: =SUM(F128:F136) -> 0 | G137: =SUM(G128:G136) -> 0 | H137: 0 | I137: 0 | J137: 0 | L137: =SUM(L128:L136) -> 0
A138: =A120 -> 2 | B138: =B120 -> 2 | C138: Итого за день: | F138: =F127+F137 -> 500 | G138: =G127+G137 -> 16 | H138: =H127+H137 -> 24 | I138: =I127+I137 -> 40 | J138: =J127+J137 -> 430 | L138: 69
A139: 2 | B139: 3 | C139: Завтрак | D139: гор.блюдо | E139: ='[8]1'!$D$4 -> Плов из птицы (1 вариант) | F139: 200 | G139: 18 | H139: 26 | I139: 49 | J139: 435 | K139: 502 | L139: 47
D141: гор.напиток | E141: ='[8]1'!$D$5 -> Чай с лимоном | F141: 200 | G141: 0 | H141: 0 | I141: 15 | J141: 61 | K141: 459 | L141: 13
D142: хлеб | E142: ='[8]1'!$D$6 -> Хлеб пшеничный 2 сорт обогащенный | F142: 50 | G142: 4 | H142: 0 | I142: 25 | J142: 118 | K142: 13002 | L142: 8
D143: фрукты
D144: ='[8]1'!$B$7 -> закуска | E144: ='[8]1'!$D$7 -> Овощи по сезону (порциями) (помидоры) | F144: 60 | G144: 1 | H144: 0 | I144: 2 | J144: 14 | K144: 145 | L144: 11
D146: итого | F146: =SUM(F139:F145) -> 510 | G146: =SUM(G139:G145) -> 23 | H146: 26 | I146: 91 | J146: 628 | L146: =SUM(L139:L145) -> 79
A147: =A139 -> 2 | B147: =B139 -> 3 | C147: Обед | D147: закуска
D148: 1 блюдо
D149: 2 блюдо
D150: гарнир
D151: напиток
D152: хлеб бел.
D153: хлеб черн.
D156: итого | F156: =SUM(F147:F155) -> 0 | G156: =SUM(G147:G155) -> 0 | H156: 0 | I156: 0 | J156: 0 | L156: =SUM(L147:L155) -> 0
A157: =A139 -> 2 | B157: =B139 -> 3 | C157: Итого за день: | F157: =F146+F156 -> 510 | G157: =G146+G156 -> 23 | H157: =H146+H156 -> 26 | I157: =I146+I156 -> 91 | J157: =J146+J156 -> 628 | L157: 79
A158: 2 | B158: 4 | C158: Завтрак | D158: гор.блюдо | E158: ='[9]1'!$D$4 -> Каша овсяная вязкая молочная с маслом, сахаром 200 гр. | F158: 200 | G158: 11 | H158: 12 | I158: 31 | J158: 219 | K158: 284 | L158: 33
D160: гор.напиток | E160: ='[9]1'!$D$5 -> Кофейный напиток б/м 200 гр | F160: 200 | G160: 1 | H160: 0 | I160: 18 | J160: 75 | K160: 432 | L160: 17
D161: хлеб
D162: фрукты | E162: ='[9]1'!D7 -> Фрукты свежие (Яблоко) 100 гр. | F162: 100 | H162: 0 | I162: 10 | J162: 47 | K162: 79 | L162: 13
E163: ='[9]1'!D8 -> Печенье 50 гр. | F163: 50 | G163: 5 | H163: 5 | I163: 27 | J163: 198 | L163: 16
D165: итого | F165: =SUM(F158:F164) -> 550 | G165: =SUM(G158:G164) -> 17 | H165: 17 | I165: 86 | J165: 539 | L165: =SUM(L158:L164) -> 79
A166: =A158 -> 2 | B166: =B158 -> 4 | C166: Обед | D166: закуска
D167: 1 блюдо
D168: 2 блюдо
D169: гарнир
D170: напиток
D171: хлеб бел.
D172: хлеб черн.
D175: итого | F175: =SUM(F166:F174) -> 0 | G175: =SUM(G166:G174) -> 0 | H175: 0 | I175: 0 | J175: 0 | L175: =SUM(L166:L174) -> 0
A176: =A158 -> 2 | B176: =B158 -> 4 | C176: Итого за день: | F176: =F165+F175 -> 550 | G176: =G165+G175 -> 17 | H176: =H165+H175 -> 17 | I176: =I165+I175 -> 86 | J176: =J165+J175 -> 539 | L176: 79
A177: 2 | B177: 5 | C177: Завтрак | D177: гор.блюдо | E177: ='[10]1'!$D$4 -> Макаронные изделия отварные 150 гр. | F177: 150 | G177: 6 | H177: 8 | I177: 17 | J177: 230 | K177: 255 | L177: 11
D179: гор.напиток | E179: ='[10]1'!$D$5 -> Чай с сахаром 200 гр. | F179: 200 | G179: 0 | H179: 0 | I179: 10 | J179: 41 | K179: 458 | L179: 10
D180: хлеб | E180: ='[10]1'!$D$6 -> Хлеб пшеничный 2 сорт обогащенный 50 гр. | F180: 50 | G180: 4 | H180: 0 | I180: 25 | J180: 118 | K180: 13002 | L180: 8
D181: фрукты
D182: ='[10]1'!$B$7 -> закуска | E182: ='[10]1'!D7 -> Икра кабачковая (промышленного производства) 60 гр. | F182: 60 | G182: 1 | H182: 3 | I182: 4 | J182: 47 | K182: 148 | L182: 21
E183: ='[10]1'!D8 -> Сосиски отварные 100 гр. | F183: 100 | G183: 11 | H183: 13 | I183: 23 | J183: 300 | K183: 74 | L183: 29
D184: итого | F184: =SUM(F177:F183) -> 560 | G184: =SUM(G177:G183) -> 22 | H184: 24 | I184: 79 | J184: 736 | L184: =SUM(L177:L183) -> 79
A185: =A177 -> 2 | B185: =B177 -> 5 | C185: Обед | D185: закуска
D186: 1 блюдо
D187: 2 блюдо
D188: гарнир
D189: напиток
D190: хлеб бел.
D191: хлеб черн.
D194: итого | F194: =SUM(F185:F193) -> 0 | G194: =SUM(G185:G193) -> 0 | H194: 0 | I194: 0 | J194: 0 | L194: =SUM(L185:L193) -> 0
A195: =A177 -> 2 | B195: =B177 -> 5 | C195: Итого за день: | F195: =F184+F194 -> 560 | G195: =G184+G194 -> 22 | H195: =H184+H194 -> 24 | I195: =I184+I194 -> 79 | J195: =J184+J194 -> 736 | L195: 79
C196: Среднее значение за период: | F196: =(F24+F43+F62+F81+F100+F119+F138+F157+F176+F195)/(IF(F24=0,0,1)+IF(F43=0,0,1)+IF(F62=0,0,1)+IF(F81=0,0,1)+IF(F100=0,0,1)+IF(F119=0,0,1)+IF(F138=0,0,1)+IF(F157=0,0,1)+IF(F176=0,0,1)+IF(F195=0,0,1)) -> 540 | G196: =(G24+G43+G62+G81+G100+G119+G138+G157+G176+G195)/(IF(G24=0,0,1)+IF(G43=0,0,1)+IF(G62=0,0,1)+IF(G81=0,0,1)+IF(G100=0,0,1)+IF(G119=0,0,1)+IF(G138=0,0,1)+IF(G157=0,0,1)+IF(G176=0,0,1)+IF(G195=0,0,1)) -> 21.1 | H196: 21.5 | I196: 80.6 | J196: 591.9 | L196: =(L24+L43+L62+L81+L100+L119+L138+L157+L176+L195)/(IF(L24=0,0,1)+IF(L43=0,0,1)+IF(L62=0,0,1)+IF(L81=0,0,1)+IF(L100=0,0,1)+IF(L119=0,0,1)+IF(L138=0,0,1)+IF(L157=0,0,1)+IF(L176=0,0,1)+IF(L195=0,0,1)) -> 78
